[Event "*** Titled Tuesday Blitz"]
[Site "Chess.com"]
[Date "2021.03.02"]
[Round "10"]
[White "WilliamSchill"]
[Black "jordanasoul"]
[Result "0-1"]
[WhiteElo "2062"]
[BlackElo "2164"]
[TimeControl "180+1"]
[EndTime "11:59:03 PST"]
[Termination "jordanasoul won on time"]

1. e4 {[%clk 0:03:00.9]} 1... c5 {[%clk 0:02:36]} 2. Nf3 {[%clk 0:03:00.1]} 2...
Nc6 {[%clk 0:02:34.4]} 3. d4 {[%clk 0:02:59.9]} 3... cxd4 {[%clk 0:02:34.5]} 4.
Nxd4 {[%clk 0:03:00.1]} 4... e5 {[%clk 0:02:35]} 5. Nb5 {[%clk 0:02:59.2]} 5...
d6 {[%clk 0:02:35.6]} 6. c4 {[%clk 0:02:58.8]} 6... Be7 {[%clk 0:02:34]} 7. Be2
{[%clk 0:02:58.7]} 7... Nf6 {[%clk 0:02:30.3]} 8. N5c3 {[%clk 0:02:57.9]} 8...
O-O {[%clk 0:02:26.7]} 9. O-O {[%clk 0:02:57.7]} 9... Be6 {[%clk 0:02:06.5]} 10.
f3 {[%clk 0:02:43.5]} 10... Rc8 {[%clk 0:02:00.1]} 11. Nd5 {[%clk 0:02:42.3]}
11... Nd4 {[%clk 0:01:52.4]} 12. Nbc3 {[%clk 0:02:35.4]} 12... Qd7 {[%clk
0:01:49.8]} 13. Be3 {[%clk 0:02:33.4]} 13... Nxe2+ {[%clk 0:01:44]} 14. Qxe2
{[%clk 0:02:33.3]} 14... b6 {[%clk 0:01:42.6]} 15. Rad1 {[%clk 0:02:22.8]} 15...
Rfd8 {[%clk 0:01:35.4]} 16. Rd2 {[%clk 0:02:13.2]} 16... Ne8 {[%clk 0:01:30]}
17. Rfd1 {[%clk 0:02:04.1]} 17... Bf8 {[%clk 0:01:29.2]} 18. Bg5 {[%clk
0:01:55]} 18... f6 {[%clk 0:01:28.1]} 19. Be3 {[%clk 0:01:55]} 19... Qb7 {[%clk
0:01:27.5]} 20. b3 {[%clk 0:01:49.8]} 20... Kh8 {[%clk 0:01:15]} 21. a4 {[%clk
0:01:46.3]} 21... f5 {[%clk 0:01:09.8]} 22. Bg5 {[%clk 0:01:27.7]} 22... Rd7
{[%clk 0:01:07.8]} 23. exf5 {[%clk 0:01:27.1]} 23... Bxf5 {[%clk 0:01:05.7]} 24.
Ne4 {[%clk 0:01:27.2]} 24... h6 {[%clk 0:00:59]} 25. Bh4 {[%clk 0:01:20]} 25...
Rf7 {[%clk 0:00:54.9]} 26. Ne3 {[%clk 0:01:06.4]} 26... Bxe4 {[%clk 0:00:51.8]}
27. fxe4 {[%clk 0:01:05.4]} 27... Qxe4 {[%clk 0:00:52.3]} 28. Bg3 {[%clk
0:01:00.4]} 28... Nf6 {[%clk 0:00:48.9]} 29. Qd3 {[%clk 0:00:43]} 29... Qxd3
{[%clk 0:00:45.3]} 30. Rxd3 {[%clk 0:00:43.2]} 30... Nh5 {[%clk 0:00:45.5]} 31.
Nd5 {[%clk 0:00:24.6]} 31... Nxg3 {[%clk 0:00:39.8]} 32. Rxg3 {[%clk 0:00:21]}
32... g5 {[%clk 0:00:38.7]} 33. Rf3 {[%clk 0:00:17.7]} 33... Rxf3 {[%clk
0:00:37.6]} 34. gxf3 {[%clk 0:00:18]} 34... Kg7 {[%clk 0:00:36.3]} 35. Kg2
{[%clk 0:00:16.9]} 35... Kg6 {[%clk 0:00:36]} 36. h3 {[%clk 0:00:16.9]} 36...
Kf5 {[%clk 0:00:34.5]} 37. Re1 {[%clk 0:00:17.1]} 37... Ke6 {[%clk 0:00:33.8]}
38. Re4 {[%clk 0:00:15.6]} 38... Rc6 {[%clk 0:00:30.3]} 39. Nb4 {[%clk
0:00:11.4]} 39... Rc8 {[%clk 0:00:28.6]} 40. Nd5 {[%clk 0:00:11.3]} 40... Bg7
{[%clk 0:00:27.5]} 41. Kg3 {[%clk 0:00:09.9]} 41... Rf8 {[%clk 0:00:26.9]} 42.
Kg4 {[%clk 0:00:09.6]} 42... Rf7 {[%clk 0:00:23.3]} 43. Kg3 {[%clk 0:00:09.2]}
43... h5 {[%clk 0:00:22.5]} 44. Kg2 {[%clk 0:00:09.3]} 44... Bh6 {[%clk
0:00:21.2]} 45. Re2 {[%clk 0:00:06.8]} 45... Rg7 {[%clk 0:00:21.3]} 46. Ra2
{[%clk 0:00:05.5]} 46... g4 {[%clk 0:00:21.4]} 47. hxg4 {[%clk 0:00:05.8]} 47...
hxg4 {[%clk 0:00:20.9]} 48. fxg4 {[%clk 0:00:05.2]} 48... Rxg4+ {[%clk
0:00:20.8]} 49. Kf3 {[%clk 0:00:05.2]} 49... Rh4 {[%clk 0:00:19.5]} 50. Kg3
{[%clk 0:00:05.3]} 50... Rd4 {[%clk 0:00:19.3]} 0-1

[Event "*** Titled Tuesday Blitz"]
[Site "Chess.com"]
[Date "2021.03.02"]
[Round "10"]
[White "andy_rekt"]
[Black "Diamantidis_13"]
[Result "0-1"]
[WhiteElo "2281"]
[BlackElo "2433"]
[TimeControl "180+1"]
[EndTime "11:59:05 PST"]
[Termination "Diamantidis_13 won on time"]

1. d4 {[%clk 0:03:00.9]} 1... Nf6 {[%clk 0:02:59.7]} 2. c4 {[%clk 0:03:01]} 2...
e6 {[%clk 0:02:59.3]} 3. Nc3 {[%clk 0:03:01.3]} 3... Bb4 {[%clk 0:02:59]} 4. e3
{[%clk 0:03:01.4]} 4... O-O {[%clk 0:02:58.4]} 5. Ne2 {[%clk 0:03:01.7]} 5...
Re8 {[%clk 0:02:57.4]} 6. a3 {[%clk 0:03:02.2]} 6... Bf8 {[%clk 0:02:57.6]} 7.
d5 {[%clk 0:03:01.2]} 7... a5 {[%clk 0:02:54.6]} 8. g3 {[%clk 0:03:01.1]} 8...
Na6 {[%clk 0:02:52]} 9. Bg2 {[%clk 0:03:01.4]} 9... Nc5 {[%clk 0:02:52.6]} 10.
O-O {[%clk 0:02:58.4]} 10... d6 {[%clk 0:02:51.7]} 11. b3 {[%clk 0:02:55.1]}
11... e5 {[%clk 0:02:36.4]} 12. Bb2 {[%clk 0:02:53.7]} 12... Bd7 {[%clk
0:02:33]} 13. b4 {[%clk 0:02:50.8]} 13... Na6 {[%clk 0:02:28.6]} 14. Qb3 {[%clk
0:02:40]} 14... h5 {[%clk 0:02:24.7]} 15. e4 {[%clk 0:02:30.8]} 15... h4 {[%clk
0:02:13.3]} 16. f4 {[%clk 0:02:27.4]} 16... hxg3 {[%clk 0:02:13.4]} 17. hxg3
{[%clk 0:02:26.4]} 17... Ng4 {[%clk 0:02:13.7]} 18. Rf3 {[%clk 0:02:19]} 18...
c6 {[%clk 0:02:05.4]} 19. Raf1 {[%clk 0:02:13.7]} 19... Qb6+ {[%clk 0:02:00.4]}
20. Kh1 {[%clk 0:01:47.7]} 20... axb4 {[%clk 0:01:58.8]} 21. Na4 {[%clk
0:01:45.7]} 21... Qa5 {[%clk 0:01:47]} 22. axb4 {[%clk 0:01:39.7]} 22... Nxb4
{[%clk 0:01:44.9]} 23. Nac3 {[%clk 0:01:28.2]} 23... cxd5 {[%clk 0:01:38.1]} 24.
Nxd5 {[%clk 0:01:24.5]} 24... Nxd5 {[%clk 0:01:33.9]} 25. exd5 {[%clk
0:01:22.6]} 25... e4 {[%clk 0:01:29]} 26. Rc3 {[%clk 0:01:17]} 26... Qa2 {[%clk
0:01:13.2]} 27. Ra1 {[%clk 0:01:07.3]} 27... Qxb3 {[%clk 0:01:12.1]} 28. Rxb3
{[%clk 0:01:07.2]} 28... Rxa1+ {[%clk 0:01:10.7]} 29. Bxa1 {[%clk 0:01:08.1]}
29... Bc8 {[%clk 0:01:02.2]} 30. Bd4 {[%clk 0:00:44.8]} 30... f5 {[%clk
0:01:01.1]} 31. Rb6 {[%clk 0:00:38.8]} 31... Kf7 {[%clk 0:00:43.5]} 32. Nc3
{[%clk 0:00:36.1]} 32... g6 {[%clk 0:00:40.3]} 33. Bf1 {[%clk 0:00:30.3]} 33...
Be7 {[%clk 0:00:29.7]} 34. Nb5 {[%clk 0:00:29]} 34... Rd8 {[%clk 0:00:18.1]} 35.
Be2 {[%clk 0:00:24.5]} 35... Nf6 {[%clk 0:00:18.2]} 36. Bxf6 {[%clk 0:00:11.4]}
36... Kxf6 {[%clk 0:00:16.5]} 37. c5 {[%clk 0:00:11.8]} 37... Kf7 {[%clk
0:00:15.9]} 38. cxd6 {[%clk 0:00:11.5]} 38... Bf6 {[%clk 0:00:16]} 39. Kg2
{[%clk 0:00:08.1]} 39... Ke8 {[%clk 0:00:13.8]} 40. Bc4 {[%clk 0:00:07]} 40...
Bd7 {[%clk 0:00:14]} 41. Nc7+ {[%clk 0:00:06.5]} 41... Kf7 {[%clk 0:00:13.5]}
42. Ne6 {[%clk 0:00:06.8]} 42... Rb8 {[%clk 0:00:11.1]} 43. Nc5 {[%clk
0:00:06.7]} 43... Ke8 {[%clk 0:00:11.5]} 44. Rxb7 {[%clk 0:00:05.8]} 44... Rxb7
{[%clk 0:00:11.3]} 45. Nxb7 {[%clk 0:00:06.7]} 45... Bd4 {[%clk 0:00:09.6]} 46.
Kf1 {[%clk 0:00:05.3]} 46... Bb6 {[%clk 0:00:09.7]} 47. Ke2 {[%clk 0:00:04.1]}
47... Bc8 {[%clk 0:00:10]} 48. Ba6 {[%clk 0:00:02.5]} 48... Kd7 {[%clk
0:00:10.4]} 0-1

[Event "*** Titled Tuesday Blitz"]
[Site "Chess.com"]
[Date "2021.03.02"]
[Round "10"]
[White "nrvisakh"]
[Black "Mr_Sinigami"]
[Result "1-0"]
[WhiteElo "2777"]
[BlackElo "2622"]
[TimeControl "180+1"]
[EndTime "11:59:09 PST"]
[Termination "nrvisakh won on time"]

1. d4 {[%clk 0:02:33.3]} 1... Nf6 {[%clk 0:02:59]} 2. Bf4 {[%clk 0:02:33.2]}
2... g6 {[%clk 0:02:58.1]} 3. e3 {[%clk 0:02:31.8]} 3... Bg7 {[%clk 0:02:58]} 4.
h3 {[%clk 0:02:31.5]} 4... O-O {[%clk 0:02:58.1]} 5. Nf3 {[%clk 0:02:31.9]} 5...
d6 {[%clk 0:02:58.2]} 6. Be2 {[%clk 0:02:32.1]} 6... Nfd7 {[%clk 0:02:58.6]} 7.
O-O {[%clk 0:02:31.5]} 7... e5 {[%clk 0:02:59.1]} 8. Bh2 {[%clk 0:02:30.7]} 8...
f5 {[%clk 0:02:58.7]} 9. dxe5 {[%clk 0:02:29.2]} 9... Nxe5 {[%clk 0:02:53.5]}
10. Nxe5 {[%clk 0:02:28.3]} 10... dxe5 {[%clk 0:02:53.6]} 11. Nc3 {[%clk
0:02:27.9]} 11... Be6 {[%clk 0:02:48.8]} 12. Qxd8 {[%clk 0:02:17.3]} 12... Rxd8
{[%clk 0:02:47]} 13. Rfd1 {[%clk 0:02:18.2]} 13... Na6 {[%clk 0:02:24.6]} 14.
Bxa6 {[%clk 0:02:08.4]} 14... bxa6 {[%clk 0:02:24.3]} 15. e4 {[%clk 0:02:08.7]}
15... Kf7 {[%clk 0:02:09.7]} 16. f3 {[%clk 0:02:05.1]} 16... Rab8 {[%clk
0:02:08.8]} 17. b3 {[%clk 0:02:04.8]} 17... Kf6 {[%clk 0:01:05.6]} 18. Kh1
{[%clk 0:02:02.4]} 18... Bf8 {[%clk 0:01:03]} 19. Bg1 {[%clk 0:01:58.8]} 19...
c5 {[%clk 0:00:57.9]} 20. Na4 {[%clk 0:01:56.8]} 20... Rbc8 {[%clk 0:00:56]} 21.
c4 {[%clk 0:01:55.7]} 21... Rd4 {[%clk 0:00:50.5]} 22. Bxd4 {[%clk 0:01:53]}
22... exd4 {[%clk 0:00:44.2]} 23. Nb2 {[%clk 0:01:52.5]} 23... a5 {[%clk
0:00:35.1]} 24. Nd3 {[%clk 0:01:51.2]} 24... Rb8 {[%clk 0:00:33.6]} 25. Nf4
{[%clk 0:01:47.5]} 25... fxe4 {[%clk 0:00:26.1]} 26. fxe4 {[%clk 0:00:44.8]}
26... Ke5 {[%clk 0:00:23.8]} 27. Nd3+ {[%clk 0:00:40.9]} 27... Kd6 {[%clk
0:00:23.4]} 28. Rf1 {[%clk 0:00:39.2]} 28... Be7 {[%clk 0:00:22.2]} 29. e5+
{[%clk 0:00:38.4]} 29... Kd7 {[%clk 0:00:20.6]} 30. Nf4 {[%clk 0:00:37.9]} 30...
Bg5 {[%clk 0:00:17.6]} 31. Nd5 {[%clk 0:00:37.7]} 31... a4 {[%clk 0:00:16.8]}
32. Rab1 {[%clk 0:00:37.2]} 32... Bf5 {[%clk 0:00:16.6]} 33. Rb2 {[%clk
0:00:36]} 33... a5 {[%clk 0:00:14.6]} 34. Nf6+ {[%clk 0:00:23.6]} 34... Ke6
{[%clk 0:00:13.5]} 35. Nxh7 {[%clk 0:00:17]} 35... Be3 {[%clk 0:00:13.4]} 36.
Nf6 {[%clk 0:00:17.1]} 36... a3 {[%clk 0:00:11.4]} 37. Re2 {[%clk 0:00:16.1]}
37... Bd3 {[%clk 0:00:11.5]} 38. Rxe3 {[%clk 0:00:13.3]} 38... dxe3 {[%clk
0:00:11.4]} 39. Re1 {[%clk 0:00:13.6]} 39... e2 {[%clk 0:00:11.1]} 40. Kg1
{[%clk 0:00:13.9]} 40... Kxe5 {[%clk 0:00:11.2]} 41. Nd7+ {[%clk 0:00:13.4]}
41... Kd4 {[%clk 0:00:10.5]} 42. Nxb8 {[%clk 0:00:14.3]} 42... Kc3 {[%clk
0:00:10.9]} 43. Nc6 {[%clk 0:00:14.4]} 43... Kb2 {[%clk 0:00:10.7]} 44. Ne5
{[%clk 0:00:14.5]} 44... Kxa2 {[%clk 0:00:04.2]} 45. Nxd3 {[%clk 0:00:14.5]}
45... Kxb3 {[%clk 0:00:04.5]} 46. Rxe2 {[%clk 0:00:14.7]} 1-0

[Event "*** Titled Tuesday Blitz"]
[Site "Chess.com"]
[Date "2021.03.02"]
[Round "10"]
[White "bakki78"]
[Black "AlexPapasimakopoulos"]
[Result "1/2-1/2"]
[WhiteElo "2784"]
[BlackElo "2624"]
[TimeControl "180+1"]
[EndTime "11:59:11 PST"]
[Termination "Game drawn - insufficient material"]

1. e4 {[%clk 0:03:00.9]} 1... e6 {[%clk 0:03:00.1]} 2. d4 {[%clk 0:03:00.4]}
2... d5 {[%clk 0:03:00.5]} 3. Nd2 {[%clk 0:03:00.7]} 3... Nf6 {[%clk 0:02:59.9]}
4. Bd3 {[%clk 0:02:59.2]} 4... c5 {[%clk 0:02:59.9]} 5. e5 {[%clk 0:02:59.5]}
5... Nfd7 {[%clk 0:02:59.9]} 6. c3 {[%clk 0:02:59.6]} 6... Nc6 {[%clk
0:03:00.7]} 7. Ne2 {[%clk 0:02:59.7]} 7... cxd4 {[%clk 0:03:00.5]} 8. cxd4
{[%clk 0:02:59.3]} 8... f6 {[%clk 0:03:01.4]} 9. exf6 {[%clk 0:02:58.9]} 9...
Nxf6 {[%clk 0:03:02.3]} 10. Nf3 {[%clk 0:02:58.7]} 10... Bd6 {[%clk 0:02:56.6]}
11. O-O {[%clk 0:02:58.4]} 11... Qc7 {[%clk 0:02:56.6]} 12. Nc3 {[%clk
0:02:57.6]} 12... a6 {[%clk 0:02:56.3]} 13. Be3 {[%clk 0:02:57.8]} 13... O-O
{[%clk 0:02:54.7]} 14. Rc1 {[%clk 0:02:57.8]} 14... Bd7 {[%clk 0:02:54.4]} 15.
Na4 {[%clk 0:02:57.4]} 15... Ng4 {[%clk 0:02:44.3]} 16. h3 {[%clk 0:02:36]}
16... Nxe3 {[%clk 0:02:29.9]} 17. fxe3 {[%clk 0:02:34.9]} 17... h6 {[%clk
0:02:19.9]} 18. Nc5 {[%clk 0:02:33]} 18... Bxc5 {[%clk 0:02:16.5]} 19. Rxc5
{[%clk 0:02:32]} 19... Qg3 {[%clk 0:02:15.6]} 20. Qe2 {[%clk 0:02:23.3]} 20...
Rf6 {[%clk 0:02:05.5]} 21. Qf2 {[%clk 0:02:20.2]} 21... Qd6 {[%clk 0:01:55.3]}
22. Qh4 {[%clk 0:02:18.3]} 22... Raf8 {[%clk 0:01:54.4]} 23. Rcc1 {[%clk
0:02:13.5]} 23... e5 {[%clk 0:01:53.5]} 24. dxe5 {[%clk 0:02:10.4]} 24... Nxe5
{[%clk 0:01:54.4]} 25. Nxe5 {[%clk 0:02:07.3]} 25... Qxe5 {[%clk 0:01:53.3]} 26.
Qd4 {[%clk 0:02:01.8]} 26... Qxd4 {[%clk 0:01:36]} 27. exd4 {[%clk 0:02:01.2]}
27... Rf4 {[%clk 0:01:36.6]} 28. Rc7 {[%clk 0:01:44.7]} 28... Bc6 {[%clk
0:01:15.7]} 29. Rxf4 {[%clk 0:01:42]} 29... Rxf4 {[%clk 0:01:15.3]} 30. Bxa6
{[%clk 0:01:42.2]} 30... bxa6 {[%clk 0:01:06]} 31. Rxc6 {[%clk 0:01:42.3]} 31...
Rxd4 {[%clk 0:01:06.7]} 32. Rxa6 {[%clk 0:01:42.3]} 32... Rd1+ {[%clk 0:01:06]}
33. Kh2 {[%clk 0:01:41.5]} 33... d4 {[%clk 0:01:06.6]} 34. Rd6 {[%clk
0:01:39.6]} 34... Rd2 {[%clk 0:00:59.5]} 35. Rb6 {[%clk 0:01:33.7]} 35... d3
{[%clk 0:00:59.7]} 36. a4 {[%clk 0:01:33.5]} 36... Rd1 {[%clk 0:00:59.6]} 37.
Rd6 {[%clk 0:01:31.7]} 37... d2 {[%clk 0:00:57]} 38. b3 {[%clk 0:01:29.3]} 38...
Kf7 {[%clk 0:00:55]} 39. b4 {[%clk 0:01:26.7]} 39... Ke7 {[%clk 0:00:48]} 40.
Rd3 {[%clk 0:01:25]} 40... Ke6 {[%clk 0:00:45.5]} 41. a5 {[%clk 0:01:25.3]}
41... Ke5 {[%clk 0:00:45]} 42. a6 {[%clk 0:01:25.7]} 42... Ra1 {[%clk
0:00:40.8]} 43. Rxd2 {[%clk 0:01:23.7]} 43... Rxa6 {[%clk 0:00:41.3]} 44. b5
{[%clk 0:01:23.2]} 44... Rb6 {[%clk 0:00:37.2]} 45. Rb2 {[%clk 0:01:22.6]} 45...
Kd6 {[%clk 0:00:32.7]} 46. Kg3 {[%clk 0:01:22.8]} 46... Kc7 {[%clk 0:00:33.1]}
47. Kh4 {[%clk 0:01:20.9]} 47... Rg6 {[%clk 0:00:30.9]} 48. b6+ {[%clk
0:01:18.7]} 48... Kb7 {[%clk 0:00:31.2]} 49. g4 {[%clk 0:01:17.3]} 49... Rg5
{[%clk 0:00:30.4]} 50. Kg3 {[%clk 0:01:15.9]} 50... Rc5 {[%clk 0:00:26.4]} 51.
Kf4 {[%clk 0:01:15.5]} 51... Rc3 {[%clk 0:00:20.1]} 52. h4 {[%clk 0:01:14]}
52... Rc5 {[%clk 0:00:15.6]} 53. Rb3 {[%clk 0:01:10.4]} 53... g5+ {[%clk
0:00:15.3]} 54. hxg5 {[%clk 0:01:04.2]} 54... hxg5+ {[%clk 0:00:16.2]} 55. Ke4
{[%clk 0:01:04.3]} 55... Ra5 {[%clk 0:00:16.8]} 56. Rb2 {[%clk 0:01:02.5]} 56...
Rc5 {[%clk 0:00:16.8]} 57. Rf2 {[%clk 0:01:01.1]} 57... Kxb6 {[%clk 0:00:16.3]}
58. Rf6+ {[%clk 0:01:00.7]} 58... Kc7 {[%clk 0:00:15.7]} 59. Rf5 {[%clk
0:01:01.3]} 59... Rc4+ {[%clk 0:00:15.8]} 60. Kf3 {[%clk 0:01:01.6]} 60... Kd6
{[%clk 0:00:16.2]} 61. Rxg5 {[%clk 0:01:01.7]} 61... Ke6 {[%clk 0:00:16.7]} 62.
Rf5 {[%clk 0:01:01.9]} 62... Rc7 {[%clk 0:00:11.6]} 63. Kg3 {[%clk 0:00:59.4]}
63... Rf7 {[%clk 0:00:11]} 64. Ra5 {[%clk 0:00:58.1]} 64... Kf6 {[%clk
0:00:11.1]} 65. Ra6+ {[%clk 0:00:57.9]} 65... Kg7 {[%clk 0:00:11.4]} 66. Kh4
{[%clk 0:00:58.5]} 66... Kg8 {[%clk 0:00:12.1]} 67. Kh5 {[%clk 0:00:58]} 67...
Rf8 {[%clk 0:00:12.7]} 68. g5 {[%clk 0:00:58.3]} 68... Rb8 {[%clk 0:00:13.4]}
69. Kh6 {[%clk 0:00:58.4]} 69... Rc8 {[%clk 0:00:14.1]} 70. g6 {[%clk
0:00:58.5]} 70... Rb8 {[%clk 0:00:14.5]} 71. Rf6 {[%clk 0:00:58.1]} 71... Rc8
{[%clk 0:00:14.8]} 72. g7 {[%clk 0:00:58.5]} 72... Rb8 {[%clk 0:00:14.4]} 73.
Rf8+ {[%clk 0:00:58.7]} 73... Rxf8 {[%clk 0:00:14.6]} 74. gxf8=Q+ {[%clk
0:00:58]} 74... Kxf8 {[%clk 0:00:15.5]} 1/2-1/2

[Event "*** Titled Tuesday Blitz"]
[Site "Chess.com"]
[Date "2021.03.02"]
[Round "10"]
[White "VFernandezB"]
[Black "DinaBelenkaya"]
[Result "1-0"]
[WhiteElo "2498"]
[BlackElo "2326"]
[TimeControl "180+1"]
[EndTime "11:59:11 PST"]
[Termination "VFernandezB won by checkmate"]

1. d4 {[%clk 0:03:00.9]} 1... d5 {[%clk 0:03:00.3]} 2. Nf3 {[%clk 0:03:01.1]}
2... Nf6 {[%clk 0:02:59.5]} 3. c4 {[%clk 0:02:55.1]} 3... dxc4 {[%clk
0:02:58.5]} 4. e3 {[%clk 0:02:53.7]} 4... Bg4 {[%clk 0:02:58.8]} 5. Bxc4 {[%clk
0:02:50.7]} 5... e6 {[%clk 0:02:58.2]} 6. O-O {[%clk 0:02:48.8]} 6... Nbd7
{[%clk 0:02:44.6]} 7. h3 {[%clk 0:02:46.6]} 7... Bh5 {[%clk 0:02:42.8]} 8. Nbd2
{[%clk 0:02:32.9]} 8... c5 {[%clk 0:02:38.6]} 9. Qa4 {[%clk 0:02:07.4]} 9... Be7
{[%clk 0:02:35.5]} 10. Ne5 {[%clk 0:02:05.6]} 10... O-O {[%clk 0:02:31.6]} 11.
Nxd7 {[%clk 0:02:01]} 11... Qxd7 {[%clk 0:02:29.6]} 12. Bb5 {[%clk 0:01:55.8]}
12... Qd5 {[%clk 0:02:24.4]} 13. Bc4 {[%clk 0:01:51.6]} 13... Qd7 {[%clk
0:02:20.2]} 14. Qxd7 {[%clk 0:01:50]} 14... Nxd7 {[%clk 0:02:21.1]} 15. d5
{[%clk 0:01:42.2]} 15... Nb6 {[%clk 0:02:19.3]} 16. dxe6 {[%clk 0:01:42]} 16...
Nxc4 {[%clk 0:02:19.1]} 17. Nxc4 {[%clk 0:01:40.1]} 17... Be2 {[%clk 0:02:17.4]}
18. exf7+ {[%clk 0:01:36.6]} 18... Kh8 {[%clk 0:02:11.4]} 19. Ne5 {[%clk
0:01:24.5]} 19... Bxf1 {[%clk 0:02:11.5]} 20. Kxf1 {[%clk 0:01:23.9]} 20... Bf6
{[%clk 0:02:12]} 21. Nd7 {[%clk 0:01:20.8]} 21... Rxf7 {[%clk 0:02:10.7]} 22.
Nxc5 {[%clk 0:01:20.9]} 22... Rc7 {[%clk 0:02:10]} 23. Ne4 {[%clk 0:01:17.6]}
23... Rc2 {[%clk 0:02:08.3]} 24. Nxf6 {[%clk 0:01:13.4]} 24... gxf6 {[%clk
0:02:09.2]} 25. b3 {[%clk 0:01:13]} 25... Rd8 {[%clk 0:02:08.8]} 26. Ke1 {[%clk
0:01:11.1]} 26... b5 {[%clk 0:02:04.5]} 27. e4 {[%clk 0:01:02.5]} 27... a5
{[%clk 0:02:02.9]} 28. Be3 {[%clk 0:01:00.5]} 28... Kg7 {[%clk 0:01:55.3]} 29.
g4 {[%clk 0:00:59.7]} 29... a4 {[%clk 0:01:49.7]} 30. bxa4 {[%clk 0:00:59.4]}
30... bxa4 {[%clk 0:01:50.6]} 31. h4 {[%clk 0:00:54.1]} 31... Rb8 {[%clk
0:01:48.5]} 32. Rd1 {[%clk 0:00:51.9]} 32... Rxa2 {[%clk 0:01:43.3]} 33. Rd7+
{[%clk 0:00:51.6]} 33... Kg8 {[%clk 0:01:41.9]} 34. Kf1 {[%clk 0:00:47.3]} 34...
a3 {[%clk 0:01:39.5]} 35. Ra7 {[%clk 0:00:35.6]} 35... Ra1+ {[%clk 0:01:38.1]}
36. Kg2 {[%clk 0:00:36]} 36... Rb4 {[%clk 0:01:32.6]} 37. f3 {[%clk 0:00:34.3]}
37... a2 {[%clk 0:01:25.8]} 38. Kg3 {[%clk 0:00:29.1]} 38... Rc4 {[%clk
0:01:23.3]} 39. Ra8+ {[%clk 0:00:15.1]} 39... Kf7 {[%clk 0:01:22.7]} 40. Ra7+
{[%clk 0:00:15.7]} 40... Ke6 {[%clk 0:01:22.8]} 41. Kf4 {[%clk 0:00:12.7]} 41...
Rc2 {[%clk 0:01:16.8]} 42. Bd4 {[%clk 0:00:11.2]} 42... Rd1 {[%clk 0:01:17.3]}
43. Ra6+ {[%clk 0:00:10.7]} 43... Kf7 {[%clk 0:01:11.5]} 44. Bxf6 {[%clk
0:00:10.7]} 44... Rf1 {[%clk 0:01:03.6]} 45. g5 {[%clk 0:00:10.1]} 45... Rcf2
{[%clk 0:01:01.9]} 46. Ra3 {[%clk 0:00:10.3]} 46... Rh1 {[%clk 0:00:54.1]} 47.
Kg3 {[%clk 0:00:09.7]} 47... Rc2 {[%clk 0:00:51.8]} 48. Kg4 {[%clk 0:00:07.1]}
48... Rg2+ {[%clk 0:00:49]} 49. Kf5 {[%clk 0:00:07]} 49... Rf1 {[%clk 0:00:20]}
50. Ra7+ {[%clk 0:00:06.9]} 50... Kg8 {[%clk 0:00:16.4]} 51. Ke6 {[%clk
0:00:07.3]} 51... h5 {[%clk 0:00:10.8]} 52. Ra8+ {[%clk 0:00:06.1]} 52... Kh7
{[%clk 0:00:10.8]} 53. Rh8+ {[%clk 0:00:07]} 53... Kg6 {[%clk 0:00:10.8]} 54.
Rh6# {[%clk 0:00:06.8]} 1-0

[Event "*** Titled Tuesday Blitz"]
[Site "Chess.com"]
[Date "2021.03.02"]
[Round "10"]
[White "Nozdrachev_Leonid"]
[Black "Niktlt"]
[Result "0-1"]
[WhiteElo "2524"]
[BlackElo "2411"]
[TimeControl "180+1"]
[EndTime "11:59:11 PST"]
[Termination "Niktlt won on time"]

1. e4 {[%clk 0:03:00.9]} 1... e6 {[%clk 0:02:59.8]} 2. Nf3 {[%clk 0:02:59.9]}
2... d5 {[%clk 0:03:00.7]} 3. e5 {[%clk 0:02:59.8]} 3... Bd7 {[%clk 0:03:00.3]}
4. d4 {[%clk 0:02:58.9]} 4... c5 {[%clk 0:03:00.2]} 5. c3 {[%clk 0:02:58.4]}
5... Nc6 {[%clk 0:03:00.8]} 6. a3 {[%clk 0:02:58.1]} 6... f6 {[%clk 0:03:00.4]}
7. Bd3 {[%clk 0:02:56.7]} 7... Nh6 {[%clk 0:02:57.3]} 8. Bxh6 {[%clk 0:02:53]}
8... gxh6 {[%clk 0:02:58.2]} 9. b4 {[%clk 0:02:42.3]} 9... cxd4 {[%clk
0:02:55.6]} 10. cxd4 {[%clk 0:02:41.9]} 10... Bg7 {[%clk 0:02:51.4]} 11. Nc3
{[%clk 0:02:32.7]} 11... O-O {[%clk 0:02:49.7]} 12. b5 {[%clk 0:02:27.8]} 12...
Nxd4 {[%clk 0:02:44.8]} 13. Nxd4 {[%clk 0:02:23.8]} 13... fxe5 {[%clk
0:02:43.3]} 14. Nde2 {[%clk 0:02:16.2]} 14... e4 {[%clk 0:02:41.6]} 15. Bxe4
{[%clk 0:01:57.8]} 15... dxe4 {[%clk 0:02:40.3]} 16. O-O {[%clk 0:01:53.9]}
16... Rc8 {[%clk 0:02:31.1]} 17. Rc1 {[%clk 0:01:52.8]} 17... Qe7 {[%clk
0:02:31]} 18. a4 {[%clk 0:01:49.1]} 18... Rfd8 {[%clk 0:02:25.7]} 19. Nxe4
{[%clk 0:01:48.3]} 19... Be8 {[%clk 0:02:21.8]} 20. Rxc8 {[%clk 0:01:45.1]}
20... Rxc8 {[%clk 0:02:22.7]} 21. N2g3 {[%clk 0:01:29.6]} 21... Bg6 {[%clk
0:02:21.4]} 22. Re1 {[%clk 0:01:23]} 22... Rd8 {[%clk 0:02:17.5]} 23. Qc1 {[%clk
0:01:14.4]} 23... Qb4 {[%clk 0:02:13.3]} 24. h4 {[%clk 0:01:07.2]} 24... h5
{[%clk 0:01:48.1]} 25. Kh2 {[%clk 0:01:04.4]} 25... Be5 {[%clk 0:01:41.5]} 26.
Qg5 {[%clk 0:01:03.2]} 26... Qd4 {[%clk 0:01:27.8]} 27. Kh1 {[%clk 0:00:37.4]}
27... Rf8 {[%clk 0:01:16.3]} 28. f3 {[%clk 0:00:28.9]} 28... Bf4 {[%clk
0:00:59.2]} 29. Qe7 {[%clk 0:00:23.8]} 29... Rf7 {[%clk 0:00:54.9]} 30. Qxe6
{[%clk 0:00:21.3]} 30... Bxg3 {[%clk 0:00:55.1]} 31. Nxg3 {[%clk 0:00:14.3]}
31... Qxh4+ {[%clk 0:00:54.8]} 32. Qh3 {[%clk 0:00:13.7]} 32... Qxh3+ {[%clk
0:00:55.2]} 33. gxh3 {[%clk 0:00:14.6]} 33... h4 {[%clk 0:00:48.6]} 34. Ne4
{[%clk 0:00:11.4]} 34... Rxf3 {[%clk 0:00:49.1]} 35. Kg2 {[%clk 0:00:11.5]}
35... Ra3 {[%clk 0:00:42]} 36. Nc5 {[%clk 0:00:10.9]} 36... b6 {[%clk
0:00:42.3]} 37. Na6 {[%clk 0:00:08.7]} 37... Rxa4 {[%clk 0:00:38.5]} 38. Re7
{[%clk 0:00:08.8]} 38... Bd3 {[%clk 0:00:32.9]} 39. Nc7 {[%clk 0:00:07.2]} 39...
Re4 {[%clk 0:00:19.6]} 40. Rd7 {[%clk 0:00:06.7]} 40... Bc4 {[%clk 0:00:15.4]}
41. Kf2 {[%clk 0:00:06.8]} 41... Rf4+ {[%clk 0:00:11.7]} 42. Ke3 {[%clk
0:00:06.7]} 42... Rf7 {[%clk 0:00:12.2]} 43. Rd8+ {[%clk 0:00:06]} 43... Kg7
{[%clk 0:00:12.5]} 44. Ne8+ {[%clk 0:00:05.3]} 44... Kg6 {[%clk 0:00:12.2]} 45.
Nd6 {[%clk 0:00:05.5]} 45... Re7+ {[%clk 0:00:12.7]} 46. Kf4 {[%clk 0:00:04.8]}
46... Be6 {[%clk 0:00:13.6]} 47. Ne4 {[%clk 0:00:04.4]} 47... Bxh3 {[%clk
0:00:13.3]} 48. Rd6+ {[%clk 0:00:04.3]} 48... Kg7 {[%clk 0:00:12.6]} 49. Nf6
{[%clk 0:00:03.7]} 49... Be6 {[%clk 0:00:11.6]} 50. Nh5+ {[%clk 0:00:03.4]}
50... Kg6 {[%clk 0:00:12.1]} 0-1